bitfinex-derivatives/quotes_ETHF0:USTF0_20260226
["timestamp","ask_amount","ask_price","bid_price","bid_amount"]
[1772127061700,0.54223829,1993.5,1992.3,0.57996274]
[1772127062400,0.54223829,1993.5,1992.4,0.57996274]
[1772127062997,0.00369911,1993.5,1992.6,0.57996274]
[1772127064201,0.54223829,1993.5,1992.6,0.57996274]
[1772127066305,0.54223829,1993.5,1992.5,0.25092]
[1772127066306,0.00369911,1993.5,1992.8,0.57996274]
[1772127066505,0.54223829,1993.5,1992.8,0.57996274]
[1772127066901,0.00369911,1993.5,1992.8,0.57996274]
[1772127067111,0.53853918,1994.1,1993.2,0.57996274]
[1772127067310,8.65553918,1994.3,1993.2,0.57996274]
[1772127067509,0.53853918,1994.6,1993.4,0.57996274]
[1772127068308,0.54211157,1994.6,1993.4,0.58618422]
[1772127069209,0.54211157,1994.6,1993.6,0.57996274]
[1772127070013,0.54211157,1994.6,1993.4,0.59134864]
[1772127070500,0.56261088,1994.4,1993.4,0.59134864]
[1772127075301,0.2507,1994.3,1993.4,0.59134864]
[1772127075611,8.66761088,1994.2,1993.4,0.00622148]
[1772127075811,0.56261088,1994.1,1993.4,0.00622148]
[1772127076106,0.56261088,1994.1,1993.4,0.59134864]
[1772127076308,0.56261088,1994.5,1993.4,0.59134864]
[1772127080408,0.56261088,1994.2,1993.4,0.59134864]
[1772127080616,0.56261088,1994.0,1993.4,0.00622148]
[1772127080910,0.56261088,1994.0,1993.4,0.59134864]
[1772127081417,0.56261088,1994.4,1993.4,0.59134864]
[1772127082308,8.65918327,1994.6,1993.6,0.58512716]
[1772127082714,2.53861255,1994.9,1993.8,0.58512716]
[1772127082916,0.56261088,1994.8,1993.8,0.58512716]
[1772127083315,0.56261088,1994.8,1994.0,0.58512716]
[1772127083814,0.56743609,1994.8,1994.0,0.58512716]
[1772127086408,0.00482521,1994.8,1994.0,0.58512716]
[1772127088316,0.56743609,1994.8,1994.0,0.58512716]
[1772127089317,0.00482521,1994.8,1994.0,0.58512716]
[1772127093625,0.56743609,1994.8,1994.0,0.58512716]
[1772127095721,0.56743609,1994.8,1993.7,0.54367371]
[1772127095922,0.56743609,1994.8,1993.9,0.54367371]
[1772127096823,0.58186074,1994.8,1993.9,0.54367371]
[1772127097926,1.17943872,1995.2,1993.9,0.54367371]
[1772127098220,13.81279558,1995.7,1993.9,0.54367371]
[1772127098221,1.57030892,1995.8,1995.0,0.25061]
[1772127098521,0.25041,1996.7,1995.0,0.25061]
[1772127098522,0.57703553,1996.6,1995.1,0.54367371]
[1772127099028,0.57703553,1996.5,1995.1,0.54971252]
[1772127101628,0.54323885,1996.3,1995.1,0.00603881]
[1772127101822,0.54323885,1996.1,1995.1,0.57113967]
[1772127102626,0.54323885,1996.1,1995.1,0.00603881]
[1772127102828,0.54323885,1996.1,1995.1,0.57113967]
[1772127107730,0.54323885,1995.9,1994.2,0.56510086]
[1772127107924,0.25054,1995.6,1994.2,0.56510086]
[1772127108128,6.16312,1995.7,1994.2,0.56510086]
[1772127108129,0.54323885,1995.5,1994.2,0.56510086]
[1772127108733,0.54323885,1995.3,1994.2,0.57033597]
[1772127110435,0.54323885,1995.3,1994.4,0.56510086]
[1772127110736,7.98,1995.8,1994.6,0.56510086]
[1772127110737,0.54323885,1995.7,1994.6,0.56510086]
[1772127110932,0.54323885,1995.7,1994.7,0.56510086]
[1772127113335,0.00360206,1996.6,1995.6,0.56510086]
[1772127113533,0.00360206,1996.6,1995.8,0.56510086]
[1772127113534,0.54684091,1996.6,1995.8,0.56510086]
[1772127115129,0.00360206,1996.6,1995.8,0.56510086]
[1772127116835,0.54684091,1996.6,1995.9,40.8]
[1772127117037,0.54684091,1996.6,1996.0,0.56510086]
[1772127118342,0.54684091,1996.6,1995.8,0.56510086]
[1772127121033,0.54684091,1996.6,1995.7,40.8]
[1772127121034,0.54684091,1996.6,1995.6,0.57010443]
[1772127121236,0.54684091,1996.6,1995.6,0.00500357]
[1772127121438,0.54684091,1996.6,1995.6,0.57010443]
[1772127122330,0.54684091,1996.6,1995.6,0.00500357]
[1772127122834,0.54323885,1996.4,1995.6,0.00500357]
[1772127123033,0.54323885,1996.4,1994.7,13.8690711]
[1772127123034,0.54323885,1996.2,1995.3,0.56510086]
[1772127123229,0.54323885,1996.2,1994.7,13.8690711]
[1772127123230,0.54323885,1996.2,1994.8,0.56510086]
[1772127123429,0.54323885,1996.2,1995.0,0.56510086]
[1772127123634,0.54323885,1996.0,1995.0,0.56510086]
[1772127124135,7.666,1996.2,1995.0,0.56510086]
[1772127124136,0.54323885,1996.2,1995.0,0.56937515]
[1772127124341,0.25402206,1996.6,1995.4,0.56510086]
[1772127124342,0.54323885,1996.5,1995.4,0.56510086]
[1772127124930,0.54684091,1996.6,1995.6,0.56510086]
[1772127125339,0.54684091,1996.6,1995.8,0.56510086]
[1772127125942,0.54323885,1995.9,1994.4,0.56510086]
[1772127126238,0.54323885,1995.9,1994.0,2.46127259]
[1772127126239,0.54323885,1995.5,1994.0,2.46127259]
[1772127126442,0.54323885,1995.5,1994.2,0.56510086]
[1772127126841,0.54323885,1995.3,1994.2,0.56510086]
[1772127127037,0.54323885,1995.3,1994.2,0.57116552]
[1772127134136,0.56723473,1995.1,1994.2,0.57116552]
[1772127134339,0.5714001,1995.1,1994.2,0.57116552]
[1772127138542,0.00416537,1995.1,1994.2,0.57116552]
[1772127138937,0.00416537,1995.1,1994.4,0.53372157]
[1772127139143,0.00416537,1995.1,1994.3,2.14687173]
[1772127139144,0.56723473,1995.4,1994.6,0.53372157]
[1772127139345,0.25048,1996.2,1994.8,0.53372157]
[1772127139542,0.56723473,1996.1,1994.8,0.53372157]
[1772127140248,0.5708902,1996.1,1994.8,0.53372157]
[1772127140642,0.5708902,1996.1,1995.0,0.53372157]
[1772127140839,0.5708902,1996.1,1995.2,0.53372157]
[1772127142947,0.5708902,1996.1,1994.6,0.53372157]
[1772127142948,0.56723473,1995.8,1994.6,0.53372157]
[1772127143251,0.56723473,1995.7,1994.6,0.53372157]
[1772127143549,0.56723473,1995.6,1994.4,7.10072157]
[1772127144254,0.56723473,1995.6,1994.4,0.53372157]
[1772127144455,0.56723473,1995.5,1994.2,0.53978623]
[1772127145755,0.56723473,1995.3,1994.2,0.53978623]
[1772127148661,0.56723473,1995.3,1994.3,12.39372157]
[1772127149760,0.56723473,1995.8,1994.4,0.53372157]
[1772127149965,0.56723473,1995.6,1994.4,0.53372157]
[1772127150165,5.2917757,1995.8,1994.6,0.53372157]
[1772127150467,0.56723473,1995.2,1994.2,0.00606466]
[1772127150761,1.89617173,1995.4,1994.2,0.00606466]
[1772127150762,0.56723473,1994.8,1994.2,0.00606466]
[1772127153260,0.56723473,1994.8,1994.2,0.53978623]
[1772127154464,0.56723473,1995.3,1994.2,0.53978623]
[1772127156968,0.56723473,1995.3,1994.3,0.55394907]
[1772127161864,0.5534419,1995.7,1994.6,0.573809]
[1772127162067,0.5534419,1995.7,1994.8,0.573809]
[1772127162667,0.5534419,1995.7,1994.9,0.573809]
[1772127162867,0.5534419,1996.0,1994.9,0.573809]
[1772127163668,0.5534419,1996.0,1994.7,0.25065]
[1772127163669,0.5534419,1995.8,1994.7,0.573809]
[1772127164565,0.00365547,1996.1,1994.5,11.837]
[1772127164566,0.55709737,1996.1,1995.2,0.573809]
[1772127165668,0.55709737,1996.1,1995.3,0.573809]
[1772127165869,0.5534419,1996.5,1995.5,0.573809]
[1772127166862,0.55759502,1996.5,1995.5,0.573809]
[1772127168171,0.55759502,1996.5,1995.2,0.573809]
[1772127170875,0.5534419,1996.3,1995.2,0.573809]
[1772127171074,0.5534419,1996.1,1995.0,0.573809]
[1772127171376,7.759,1996.3,1995.0,0.573809]
[1772127171377,0.5534419,1995.9,1995.0,0.573809]
[1772127172871,0.25459312,1996.5,1995.1,0.573809]
[1772127172872,0.5534419,1996.4,1995.1,0.573809]
[1772127173871,0.5534419,1996.2,1995.1,0.573809]
[1772127177873,0.5534419,1996.2,1995.2,0.573809]
[1772127182176,0.5534419,1996.4,1995.4,0.573809]
[1772127183573,0.00415312,1996.5,1995.8,0.573809]
[1772127183774,0.5534419,1996.8,1995.8,0.5774234]
[1772127184377,0.5534419,1996.8,1996.0,0.573809]
[1772127184677,0.55918377,1996.8,1996.1,0.573809]
[1772127184878,0.55918377,1996.8,1996.3,0.573809]
[1772127185381,0.55918377,1996.8,1996.0,0.573809]
[1772127185574,0.00574187,1996.8,1996.1,0.573809]
[1772127187974,0.55918377,1996.8,1996.1,0.573809]
[1772127190778,0.00574187,1996.8,1996.1,0.573809]
[1772127190979,0.56639596,1996.8,1996.1,0.573809]
[1772127191372,0.56639596,1996.8,1995.8,0.0036144]
[1772127191373,0.2504,1996.7,1995.8,0.0036144]
[1772127191577,0.56065409,1996.6,1995.8,0.0036144]
[1772127191780,0.56065409,1996.4,1995.1,0.55426929]
[1772127192081,0.56065409,1996.2,1994.9,0.55426929]
[1772127192783,0.56065409,1996.2,1994.9,0.55781371]
[1772127193678,0.56065409,1996.0,1994.9,0.55781371]
[1772127195385,0.56065409,1996.0,1995.1,0.55426929]
[1772127201278,0.56065409,1996.0,1995.2,0.55426929]
[1772127201681,0.56065409,1996.0,1995.1,0.55426929]
[1772127202679,0.56065409,1996.0,1995.2,0.55426929]
[1772127204984,0.56065409,1996.0,1995.3,0.55426929]
[1772127205186,0.56065409,1996.0,1995.1,0.55426929]
[1772127205382,0.56065409,1996.0,1994.9,0.55781371]
[1772127206690,0.56065409,1995.8,1994.9,0.55781371]
[1772127207087,0.56065409,1995.8,1995.0,0.55426929]
[1772127207885,0.56065409,1996.0,1995.1,0.55426929]
[1772127208186,0.56065409,1996.0,1995.3,0.55426929]
[1772127208484,0.56065409,1996.2,1995.4,0.55426929]
[1772127209189,0.56065409,1996.5,1995.4,0.55426929]
[1772127209383,0.56065409,1996.5,1995.6,0.55426929]
[1772127209786,0.56065409,1996.7,1995.6,0.55426929]
[1772127210089,0.56065409,1996.7,1995.9,0.55426929]
[1772127210490,0.56639596,1996.8,1996.2,0.55426929]
[1772127211285,0.56639596,1996.8,1996.2,0.80476929]
[1772127212291,0.56639596,1996.8,1996.0,0.55426929]
[1772127212785,0.56639596,1996.8,1995.6,0.55426929]
[1772127212982,0.56639596,1996.8,1995.9,0.55426929]
[1772127213493,0.56639596,1996.8,1996.1,0.55426929]
[1772127213991,0.56639596,1996.8,1996.3,0.2505]
[1772127214192,0.56639596,1996.8,1996.3,0.80975731]
[1772127214389,0.56639596,1996.8,1996.4,0.2505]
[1772127214590,0.00574187,1996.8,1996.5,0.55426929]
[1772127214789,0.56065409,1997.0,1996.5,0.55426929]
[1772127214998,0.56065409,1997.0,1996.5,0.80476929]
[1772127215189,3.1232468,1997.2,1996.6,0.52963724]
[1772127215695,0.00377393,1997.2,1996.6,0.52963724]
[1772127215891,0.5592162,1997.4,1996.9,0.78013724]
[1772127216194,0.5592162,1997.4,1996.7,0.52963724]
[1772127216687,7.59,1998.0,1996.7,0.52963724]
[1772127216688,0.5592162,1997.8,1996.7,0.52963724]
[1772127216893,0.5592162,1997.8,1996.8,0.2505]
[1772127217088,0.56353726,1997.8,1996.9,0.52963724]
[1772127217490,0.56353726,1997.8,1997.0,0.78013724]
[1772127217698,0.56353726,1997.8,1997.0,0.52963724]
[1772127217893,0.5592162,1997.6,1996.7,0.52963724]
[1772127218195,0.5592162,1997.6,1996.5,0.52963724]
[1772127218595,0.5592162,1997.4,1996.3,0.53462526]
[1772127218896,0.5592162,1997.4,1995.9,0.52963724]
[1772127218897,0.5592162,1997.0,1995.9,0.52963724]
[1772127219195,0.5592162,1996.9,1995.9,0.52963724]
[1772127219894,0.5592162,1996.9,1995.9,0.00554786]
[1772127220496,0.57559976,1996.7,1995.9,0.00554786]
[1772127221393,0.57559976,1996.7,1996.0,0.2505]
[1772127221591,0.57559976,1996.7,1996.0,0.56815149]
[1772127221791,0.57559976,1996.7,1995.9,0.00554786]
[1772127222292,0.57559976,1996.7,1995.4,40.8]
[1772127222293,0.57559976,1996.7,1995.6,0.56815149]
[1772127222497,0.57559976,1996.5,1995.4,0.56815149]
[1772127222892,0.57559976,1996.1,1994.9,0.56815149]
[1772127223093,0.57559976,1995.9,1994.9,0.56815149]
[1772127223494,0.58037272,1995.9,1994.9,0.57177748]
[1772127223795,0.25051,1995.8,1994.9,0.00362599]
[1772127223993,0.57559976,1995.5,1994.9,0.00362599]
[1772127224795,0.57559976,1995.5,1994.0,0.56815149]
[1772127224989,0.57559976,1995.3,1994.0,0.56815149]
[1772127225793,0.57559976,1995.3,1994.0,0.57288714]
[1772127226596,0.57559976,1995.3,1994.2,0.56815149]
[1772127227303,0.57559976,1995.3,1994.4,0.56815149]
[1772127227905,0.57559976,1995.2,1994.0,0.57288714]
[1772127228200,0.57559976,1995.2,1994.2,0.56815149]
[1772127230203,0.57559976,1995.4,1994.4,0.56815149]
[1772127230399,0.57559976,1995.8,1994.6,0.56815149]
[1772127231500,0.00477296,1995.9,1994.8,0.56815149]
[1772127231802,0.58037272,1995.9,1994.8,0.56815149]
[1772127235110,0.00477296,1995.9,1995.0,0.56815149]
[1772127235315,0.00477296,1995.9,1995.2,0.56815149]
[1772127236913,0.00477296,1995.9,1994.7,0.56815149]
[1772127237712,0.00477296,1995.9,1994.9,0.56815149]
[1772127238711,0.00477296,1995.9,1995.1,0.56815149]
[1772127239505,0.58037272,1995.9,1995.1,0.56815149]
[1772127239706,0.00477296,1995.9,1995.3,0.56815149]
[1772127240316,3.18743069,1996.3,1995.3,0.56815149]
[1772127240515,0.57559976,1996.2,1995.3,0.56815149]
[1772127240916,2.61183093,1996.3,1995.3,0.56815149]
[1772127241313,2.61643778,1996.3,1995.3,0.56815149]
[1772127241517,3.19203754,1996.3,1995.3,0.56815149]
[1772127242421,0.57559976,1996.2,1995.3,0.56815149]
[1772127243010,0.57559976,1996.1,1995.1,0.56815149]
[1772127243317,0.57559976,1995.9,1994.8,0.56815149]
[1772127246018,0.57559976,1995.9,1994.4,12.30415149]
[1772127246019,0.57559976,1995.5,1994.4,12.30415149]
[1772127246215,0.57559976,1995.5,1994.0,0.25546565]
[1772127246216,0.57559976,1995.5,1994.1,0.56815149]
[1772127246416,0.57559976,1995.5,1994.2,40.8]
[1772127246611,0.57559976,1995.3,1994.1,0.56815149]
[1772127247517,0.57559976,1995.3,1994.3,0.56815149]
[1772127248313,0.57559976,1995.3,1994.0,40.80473565]
[1772127248519,0.57559976,1995.3,1994.1,0.56815149]
[1772127249313,0.57559976,1995.3,1994.2,0.56815149]
[1772127249713,0.57559976,1995.3,1994.5,0.5502759]
[1772127250521,0.56962535,1995.8,1994.5,0.5502759]
[1772127254925,0.56962535,1995.6,1994.5,0.5502759]
[1772127255922,0.56962535,1995.2,1994.1,0.5502759]
[1772127259628,0.56962535,1995.2,1994.2,0.5502759]
[1772127259833,0.56962535,1995.6,1994.4,0.5502759]
[1772127260034,0.56962535,1995.6,1994.6,0.5502759]
[1772127260829,0.56962535,1995.6,1994.8,0.5502759]
[1772127261030,0.56962535,1996.0,1994.8,0.5502759]
[1772127262831,0.56962535,1995.8,1994.8,0.5502759]
[1772127264038,0.56962535,1995.6,1994.4,0.5502759]
[1772127265136,0.56962535,1995.5,1994.4,0.5502759]
[1772127268543,0.56962535,1995.5,1994.6,0.5502759]
[1772127275745,0.67579934,1996.1,1995.0,0.67261043]
[1772127276049,0.67579934,1996.1,1995.3,0.67261043]
[1772127278148,0.68040619,1996.3,1995.5,0.67261043]
[1772127278340,0.68040619,1996.3,1995.5,0.67767219]
[1772127279147,0.68040619,1996.3,1995.5,0.00506176]
[1772127279346,0.67579934,1996.2,1995.0,0.67261043]
[1772127279542,0.76633362,1996.0,1995.0,0.67261043]
[1772127280448,0.76633362,1996.0,1995.0,0.67744646]
[1772127281642,0.76633362,1995.8,1995.0,0.00483603]
[1772127282357,0.76633362,1995.6,1994.4,0.72302018]
[1772127282850,0.76633362,1995.4,1994.4,0.72302018]
[1772127283353,0.76633362,1995.4,1994.4,0.72720775]
[1772127291655,0.76633362,1995.4,1994.6,0.72302018]
[1772127292860,0.76633362,1995.8,1994.6,0.72302018]
[1772127293252,0.76633362,1995.8,1994.4,0.97789775]
[1772127293451,0.76633362,1995.4,1994.4,0.72720775]
[1772127294063,0.76633362,1995.2,1994.4,0.00418757]
[1772127294459,0.76633362,1995.2,1994.4,0.72720775]
[1772127295458,0.25052,1995.8,1994.6,0.72302018]
[1772127295459,0.76633362,1995.7,1994.6,0.72302018]
[1772127296666,0.76633362,1995.5,1994.6,0.72302018]
[1772127300573,0.76633362,1995.3,1994.4,0.72720775]
[1772127300766,0.76633362,1995.7,1994.4,0.72720775]
[1772127300966,0.76633362,1995.7,1994.5,0.72302018]
[1772127301171,2.56434731,1995.9,1994.4,40.80418757]
[1772127301172,0.76633362,1995.3,1994.4,0.72720775]
[1772127302373,0.76633362,1995.5,1994.7,0.72302018]
[1772127302574,0.76633362,1995.7,1994.7,0.72302018]
[1772127304470,0.76633362,1995.5,1994.5,0.72302018]
[1772127310077,0.94869716,1995.3,1994.5,0.72302018]
[1772127310281,0.94869716,1995.3,1994.4,0.95168885]
[1772127311280,0.94869716,1995.1,1994.4,0.95168885]
[1772127313486,0.94869716,1995.5,1994.5,0.94750128]
[1772127314484,0.94869716,1995.3,1994.4,0.95168885]
[1772127316479,0.94869716,1995.3,1994.5,0.94750128]
[1772127320682,0.94869716,1995.3,1994.4,0.00418757]
[1772127320884,0.94869716,1995.3,1994.4,0.95168885]
[1772127323290,0.94869716,1995.1,1994.4,0.00418757]
[1772127324395,0.94869716,1995.1,1994.4,0.95168885]
[1772127327400,0.94869716,1995.1,1994.0,0.94750128]
[1772127328494,0.94869716,1995.1,1994.0,0.95118089]
[1772127328895,0.94869716,1994.9,1994.0,0.00367961]
[1772127329096,0.94869716,1994.7,1993.0,0.94750128]
[1772127329295,0.94869716,1994.3,1993.1,0.94750128]
[1772127330194,0.25074,1994.0,1993.1,0.95300399]
[1772127330393,0.94869716,1993.9,1993.1,0.00550271]
[1772127330791,0.94869716,1993.9,1993.1,0.95300399]
[1772127331301,0.94869716,1993.9,1992.6,0.94750128]
[1772127331501,0.25074,1994.0,1992.6,0.94750128]
[1772127331502,0.94869716,1993.7,1992.6,0.94750128]
[1772127332392,0.94869716,1993.7,1992.6,0.95246258]
[1772127335102,0.94869716,1993.7,1992.8,0.95364591]
[1772127335405,7.24105079,1994.3,1992.7,11.86]
[1772127335406,1.03248774,1994.2,1993.1,0.95364591]
[1772127335599,1.03248774,1994.2,1993.3,0.95364591]
[1772127335898,0.00605079,1994.3,1993.3,0.95364591]
[1772127336112,0.00605079,1994.3,1993.5,0.95364591]
[1772127336305,1.03853853,1994.3,1993.5,0.95364591]
[1772127338302,0.00605079,1994.3,1993.5,0.95364591]
[1772127339006,1.03853853,1994.3,1993.5,0.95364591]
[1772127343402,1.03853853,1994.3,1993.0,0.47766599]
[1772127346614,0.83776872,1994.1,1993.0,0.47766599]
[1772127346813,0.83776872,1993.9,1993.0,0.47766599]
[1772127347905,0.83776872,1993.9,1992.7,0.23768404]
[1772127348105,0.25074,1994.0,1992.6,0.0049613]
[1772127348106,0.83776872,1993.7,1992.6,0.0049613]
[1772127348308,0.83776872,1993.3,1991.8,0.17972203]
[1772127348503,0.83776872,1993.3,1992.0,0.17972203]
[1772127348711,0.83776872,1993.1,1992.0,0.17972203]
[1772127349409,0.83776872,1992.9,1992.0,0.00401451]
[1772127349606,0.84173583,1992.9,1992.0,0.00401451]
[1772127349908,0.83776872,1992.7,1991.6,0.14054204]
[1772127350909,0.84173583,1992.9,1991.8,0.13030018]
[1772127351116,0.00396711,1992.9,1992.0,0.13030018]
[1772127352223,0.84173583,1992.9,1992.0,0.13030018]
[1772127352717,0.00396711,1992.9,1992.2,0.13202409]
[1772127353211,0.84173583,1992.9,1992.2,0.13202409]
[1772127357216,0.84173583,1992.9,1991.9,0.12031414]
[1772127361218,0.84173583,1992.9,1991.7,0.11420911]
[1772127361720,0.83776872,1992.7,1991.6,0.00428242]
[1772127362316,0.83776872,1992.5,1991.6,0.00428242]
[1772127364627,0.83776872,1992.5,1991.6,0.12080829]
[1772127365125,0.83776872,1992.5,1991.6,0.00428242]
[1772127366024,0.83776872,1992.5,1991.6,0.11983863]
[1772127366230,0.83776872,1992.5,1991.8,0.11555621]
[1772127366525,0.83776872,1992.7,1991.8,0.11555621]
[1772127367234,0.83776872,1992.7,1991.7,0.36658621]
[1772127367523,0.83776872,1992.7,1991.8,0.11555621]
[1772127369423,0.83776872,1992.7,1990.3,6.17957]
[1772127369424,0.83776872,1991.9,1990.6,0.11482447]
[1772127369630,0.53958353,1991.8,1990.6,0.11482447]
[1772127369929,0.53958353,1991.7,1990.6,0.11482447]
[1772127370324,0.53958353,1991.7,1990.6,0.12073395]
[1772127371527,0.53958353,1991.7,1990.6,0.00590948]
[1772127371729,0.53958353,1990.9,1989.6,0.11790565]
[1772127372231,0.53958353,1990.9,1989.7,0.11404727]
[1772127372620,0.54491295,1990.9,1989.7,0.12053615]
[1772127373228,0.54491295,1990.9,1989.7,0.00648888]
[1772127374028,0.53958353,1990.7,1989.7,0.00648888]
[1772127375029,0.53958353,1990.7,1989.7,0.11970321]
[1772127375228,0.53958353,1990.7,1989.8,0.11321433]
[1772127377136,0.53958353,1990.7,1989.9,40.8]
[1772127377330,0.53958353,1990.7,1989.9,40.91739011]
[1772127377635,0.53958353,1990.7,1989.9,40.8]
[1772127377833,0.53958353,1990.7,1989.7,0.00648888]
[1772127378132,0.53958353,1990.7,1989.1,1.90494784]
[1772127378133,0.53958353,1990.7,1989.1,11.723]
[1772127378331,0.53958353,1990.5,1989.2,0.11557617]
[1772127379334,0.53958353,1990.5,1989.2,0.11909371]
[1772127380234,0.53958353,1990.3,1989.2,0.11909371]
[1772127380435,0.53958353,1990.3,1989.2,0.12070689]
[1772127381539,0.53958353,1990.3,1989.2,0.00351754]
[1772127381731,0.53958353,1990.1,1989.2,0.00351754]
[1772127382940,0.53958353,1989.9,1989.2,0.00351754]
[1772127383243,0.53958353,1989.7,1988.6,11.762]
[1772127383646,0.53958353,1989.7,1988.6,11.87408479]
[1772127383846,0.53958353,1989.7,1988.7,0.11208479]
[1772127384049,0.53958353,1989.7,1988.7,0.11665347]
[1772127384448,0.53958353,1989.7,1988.8,0.11894171]
[1772127385051,0.53958353,1989.7,1988.9,0.11894171]
[1772127386150,0.53958353,1990.2,1988.9,0.11894171]
[1772127387353,0.53958353,1990.2,1989.1,0.1199353]
[1772127389151,0.53958353,1990.2,1989.3,0.11095452]
[1772127390052,7.069,1990.7,1989.5,0.11000495]
[1772127390053,0.53958353,1990.7,1989.5,0.11000495]
[1772127391158,0.53958353,1990.7,1989.9,0.11000495]
[1772127393251,0.53958353,1990.7,1989.9,0.10804554]
[1772127393962,0.53958353,1990.7,1990.0,0.10804554]
[1772127394655,0.53958353,1990.7,1990.1,40.8]
[1772127394850,0.53958353,1990.7,1990.1,40.80631591]
[1772127395963,0.53958353,1990.7,1989.6,0.10305563]
[1772127396364,0.53958353,1990.7,1989.6,40.90305563]
[1772127396964,0.53958353,1990.7,1989.6,40.90674145]
[1772127397159,0.53958353,1990.7,1989.7,0.10330321]
[1772127398160,0.53958353,1990.7,1989.6,42.70863366]
[1772127398161,0.53958353,1990.7,1989.9,0.10241234]
[1772127399062,0.53958353,1990.7,1990.0,0.10241234]
[1772127404670,0.53958353,1990.7,1989.9,11.88111037]
[1772127406571,0.53958353,1990.7,1990.0,40.8]
[1772127407170,0.53958353,1990.7,1990.0,40.90018847]
[1772127411175,0.53958353,1990.7,1990.1,0.08971965]
[1772127412177,0.53958353,1990.7,1990.0,40.8]
[1772127412676,0.53958353,1990.7,1990.0,40.88980039]
[1772127413173,0.53958353,1990.7,1990.0,0.08980039]
[1772127413377,0.53958353,1990.7,1989.8,0.08980039]
[1772127414675,0.53958353,1990.7,1990.0,0.09055648]
[1772127415868,0.53958353,1990.7,1990.1,0.09055648]
[1772127417679,0.53958353,1990.7,1990.0,11.937]
[1772127417869,0.53958353,1990.7,1990.1,0.09276992]
[1772127421178,0.79074353,1990.7,1989.6,0.00368582]
[1772127421373,0.57289994,1990.4,1989.6,0.00368582]
[1772127421880,0.25118,1990.5,1989.6,0.00368582]
[1772127421881,0.57289994,1990.2,1989.6,0.00368582]
[1772127423875,0.57289994,1990.2,1989.1,4.01191932]
[1772127423876,0.82412994,1990.2,1988.6,12.92901607]
[1772127424079,0.57289994,1989.6,1988.2,0.08718477]
[1772127424277,0.57289994,1989.6,1988.0,0.08718477]
[1772127424278,0.57289994,1989.4,1988.0,0.08718477]
[1772127424585,0.57289994,1989.4,1988.0,2.11694153]
[1772127425085,0.57289994,1989.2,1988.0,0.09136244]
[1772127425479,0.57289994,1989.2,1988.2,0.08718477]
[1772127425676,0.57289994,1989.2,1988.0,0.09136244]
[1772127425875,0.57289994,1989.2,1988.2,0.08718477]
[1772127426280,0.57289994,1989.2,1988.1,40.8]
[1772127426676,0.57289994,1989.2,1988.1,40.8910548]
[1772127426982,0.57289994,1989.2,1988.2,0.0910548]
[1772127427782,0.57289994,1989.2,1988.3,0.0910548]
[1772127429890,0.57289994,1989.2,1988.0,0.0949074]
[1772127431583,0.55219257,1989.0,1988.0,0.00417767]
[1772127431789,0.55219257,1989.0,1987.4,0.08348527]
[1772127432082,0.55219257,1988.8,1987.4,0.08348527]
[1772127432480,0.55219257,1988.8,1987.6,0.08131563]
[1772127432684,0.55219257,1988.8,1987.6,0.08522513]
[1772127433189,0.55219257,1988.8,1987.8,0.08131563]
[1772127433586,0.55219257,1988.8,1988.0,0.08131563]
[1772127434292,0.55219257,1988.8,1988.0,2.43962711]
[1772127434485,0.55219257,1988.8,1988.1,0.08254288]
[1772127435087,0.55219257,1988.8,1988.1,2.44085436]
[1772127435492,0.55219257,1988.8,1988.1,2.35831148]
[1772127437891,0.55219257,1988.8,1988.1,2.44242368]
[1772127438282,0.55219257,1988.8,1988.2,0.08266534]
[1772127438589,0.55219257,1988.8,1988.2,2.44097682]
[1772127438789,0.55219257,1988.8,1988.2,0.08266534]
[1772127438991,0.55219257,1988.8,1988.3,2.35831148]
[1772127439191,0.55219257,1988.8,1988.1,0.08266534]
[1772127439385,0.55219257,1988.6,1987.6,0.0039095]
[1772127439591,0.55219257,1988.6,1987.8,0.08266534]
[1772127439994,0.55219257,1988.6,1987.6,0.08657484]
[1772127440186,0.55219257,1988.6,1987.8,2.44109251]
[1772127440388,0.55219257,1988.6,1987.9,0.08278103]
[1772127440589,0.55219257,1988.6,1988.1,2.44109251]
[1772127440795,0.55219257,1988.6,1988.2,0.08278103]
[1772127441293,0.55219257,1988.6,1988.3,2.35831148]
[1772127441592,0.55219257,1988.6,1988.0,2.35831148]
[1772127441794,0.55219257,1988.6,1988.0,0.08278103]
[1772127442193,0.55219257,1988.6,1988.2,2.35831148]
[1772127442591,0.55219257,1988.6,1988.0,0.08278103]
[1772127443197,0.55219257,1988.6,1988.3,2.35831148]
[1772127443387,0.35571348,1988.6,1988.1,0.0834502]
[1772127443595,0.25133,1989.3,1988.1,0.0834502]
[1772127443596,0.55219257,1989.2,1988.1,0.0834502]
[1772127443799,0.55219257,1989.2,1988.4,0.27992929]
[1772127444094,0.55219257,1989.2,1988.1,0.27992929]
[1772127444298,0.55219257,1989.2,1988.0,41.0743299]
[1772127444495,0.25133,1989.3,1987.6,0.0039095]
[1772127444496,0.55219257,1988.4,1987.6,0.0039095]
[1772127446200,6.866,1988.7,1987.1,41.0516]
[1772127446201,0.55219257,1988.2,1987.2,0.58067489]
[1772127446391,0.25146,1988.3,1986.2,0.58067489]
[1772127446392,0.55219257,1987.7,1986.2,0.58067489]
[1772127446596,0.55219257,1987.5,1986.2,0.58067489]
[1772127447199,0.55662882,1987.5,1986.2,0.58656019]
[1772127449099,0.55219257,1987.1,1986.2,0.0058853]
[1772127449400,0.55219257,1987.1,1986.2,0.58656019]
[1772127450303,0.55219257,1987.1,1986.2,0.0058853]
[1772127450800,0.55219257,1986.9,1985.8,2.6252038]
[1772127451503,0.55219257,1986.8,1985.8,2.04452891]
[1772127451804,0.55219257,1986.4,1985.3,0.58067489]
[1772127451994,12.07517121,1986.8,1984.8,0.31331312]
[1772127451995,0.55219257,1986.2,1984.9,0.58067489]
[1772127452196,0.55219257,1986.0,1984.9,0.58067489]
[1772127452395,0.55219257,1986.0,1985.0,0.58067489]
[1772127452901,5.82595478,1985.9,1985.0,0.0058097]
[1772127453201,0.55219257,1985.8,1984.8,0.58067489]
[1772127454202,0.55219257,1985.8,1984.8,0.00570877]
[1772127454403,0.55219257,1985.8,1984.8,0.58638366]
[1772127455600,0.55219257,1985.8,1984.8,0.00570877]
[1772127455804,0.55219257,1985.8,1984.8,0.58099505]
[1772127456004,0.55219257,1985.8,1984.8,0.00570877]
[1772127457095,0.55219257,1985.8,1984.4,41.37528628]
[1772127457096,6.99776257,1985.8,1984.4,41.37528628]
[1772127457296,0.56004218,1985.5,1984.2,0.57528628]
[1772127457495,0.56004218,1985.5,1983.4,0.32281811]
[1772127457496,0.56004218,1985.1,1983.8,0.57528628]
[1772127457800,0.56004218,1985.1,1984.0,0.57528628]
[1772127458304,0.2518,1985.6,1984.0,0.57528628]
[1772127458305,0.56004218,1985.6,1984.2,0.57528628]
[1772127459802,0.56004218,1985.6,1984.4,0.54018388]
[1772127460004,0.56004218,1985.6,1984.5,0.54018388]
[1772127460206,0.55629691,1985.8,1984.5,0.54018388]
[1772127460405,0.55629691,1985.8,1984.6,0.54018388]
[1772127462908,0.56050931,1986.0,1984.8,0.54018388]